{"text_format":"3","workbook":"xlsx","n_sheets":14,"sheets":["savjeti","sažetak","sij","velj","ožu","tra","svi","lip","srp","kol","ruj","lis","stu","pro"],"not_rendered":{"charts":1,"defined_names":27},"read":"whole","date_system":"1900"}

{"sheet":"savjeti","index":0,"n_rows":18,"n_cols":1,"rows_kept":18}
["SAVJETI PREDLOŽAKA"]
["Postoji li jednostavan način prebacivanja između lista sažetka Trendovi troškova i pojedinosti mjesečnih troškova?"]
["Da biste brzo prešli na troškove određenog mjeseca, kliknite povezanu vezu navigacije iznad grafikona, kao što je navigacijska veza Sij u ćeliji B2. Zatim se vratite na radni list Trendovi troškova pa kliknite vezu navigacije Sažetak u ćeliji D1. "]
["Da biste se vratili na ovaj radni list sa savjetima, na radnom listu sažetka odaberite ćeliju N2. U svakom radnom listu mjeseca možete odabrati ćeliju E1."]
["Kako dodati novu vrstu troška u sažetak troškova ili nove mjesečne troškove?"]
["Sažetak troškova ispod grafikona i pojedinosti troškova za svaki mjesec tablice su programa Excel. Da biste dodali nove retke u bilo koju tablicu programa Excel, učinite nešto do sljedećeg:"]
[{"$f":"ROW(A1)&\". Ako tablica ne sadrži redak Ukupno, započnite upisivati ispod tablice i automatski će se proširiti kada pritisnete tipku Enter ili tabulator.\"","v":"1. Ako tablica ne sadrži redak Ukupno, započnite upisivati ispod tablice i automatski će se proširiti kada pritisnete tipku Enter ili tabulator."}]
[{"$f":"ROW(A2)&\". Smjestite pokazivač ćelija u zadnju ćeliju iznad retka zbroja, npr. ukupnog zbroja zadnjeg troška, a zatim pritisnite tabulator.\"","v":"2. Smjestite pokazivač ćelija u zadnju ćeliju iznad retka zbroja, npr. ukupnog zbroja zadnjeg troška, a zatim pritisnite tabulator."}]
[{"$f":"ROW(A3)&\". Desnom tipkom miša kliknite u tablici i na skočnom izborniku pokažite na Umetanje, a zatim kliknite Reci tablice iznad ili Reci tablice ispod.\"","v":"3. Desnom tipkom miša kliknite u tablici i na skočnom izborniku pokažite na Umetanje, a zatim kliknite Reci tablice iznad ili Reci tablice ispod."}]
[{"$f":"ROW(A4)&\". U donjem desnom kutu tablice postavite pokazivač na ručicu za promjenu veličine tablice i povucite prema dolje da biste povećali broj redaka u tablici.\"","v":"4. U donjem desnom kutu tablice postavite pokazivač na ručicu za promjenu veličine tablice i povucite prema dolje da biste povećali broj redaka u tablici."}]
["U stupac Troškovi u radni list sažetka u tablicu SažetakTroškova unesite trošak."]
["Dodajte iznos troška za svaku vrstu troška u radni list mjeseca na koji se trošak odnosi."]
["na primjer: \"Trošak 1\" pojavljuje se u mjesecima od siječnja do lipnja i u prosincu. "]
[{"$f":"ROW(A1)&\". Trošak 1 unesen je na radni list sažetka u odjeljak Trošak u tablicu SažetakTroškova (kao naslov za vrstu troška)\"","v":"1. Trošak 1 unesen je na radni list sažetka u odjeljak Trošak u tablicu SažetakTroškova (kao naslov za vrstu troška)"}]
[{"$f":"ROW(A2)&\". Za svaki mjesec u kojem se trošak pojavljuje unesite iznos troška na odgovarajući radni list mjeseca.\"","v":"2. Za svaki mjesec u kojem se trošak pojavljuje unesite iznos troška na odgovarajući radni list mjeseca."}]
[{"$f":"ROW(A3)&\". Vrsta troška s radnog lista tablice SažetakTroškova stvara popis kategorija za stupac Kategorija na svakom radnom listu mjeseca.\"","v":"3. Vrsta troška s radnog lista tablice SažetakTroškova stvara popis kategorija za stupac Kategorija na svakom radnom listu mjeseca."}]
[{"$f":"ROW(A4)&\". Pomoću popisa kategorija u stupcu Kategorija odaberite odgovarajuću vrstu troška za uneseni iznos troška\"","v":"4. Pomoću popisa kategorija u stupcu Kategorija odaberite odgovarajuću vrstu troška za uneseni iznos troška"}]
[{"$f":"ROW(A5)&\". Da biste dodali nove troškove za bilo koji mjesec, dodajte novi redak u tablicu SažetakTroškova na radni list sažetka, a zatim unesite odgovarajuće detalje na radni list mjeseca na koji se odnosi.\"","v":"5. Da biste dodali nove troškove za bilo koji mjesec, dodajte novi redak u tablicu SažetakTroškova na radni list sažetka, a zatim unesite odgovarajuće detalje na radni list mjeseca na koji se odnosi."}]

{"sheet":"sažetak","index":1,"n_rows":10,"n_cols":15,"rows_kept":10}
["TRENDOVI TROŠKOVA"]
[null,"Sij","Velj","Ožu","Tra","Svi","Lip","Srp","Kol","Ruj","Lis","Stu","Pro","Savjeti"]
[]
["Troškovi","Sij","Velj","Ožu","Tra","Svi","Lip","Srp","Kol","Ruj","Lis","Stu","Pro","Zbroj","Trend"]
["Trošak 1",{"$f":"SUMIFS(TroSij[Iznos],TroSij[Kategorija],SažetakTroškova[Troškovi])","v":{"v":33,"d":"33.00"}},{"$f":"SUMIFS(TroVelj[Iznos],TroVelj[Kategorija],SažetakTroškova[Troškovi])","v":{"v":375,"d":"375.00"}},{"$f":"SUMIFS(TroOžu[Iznos],TroOžu[Kategorija],SažetakTroškova[Troškovi])","v":{"v":33,"d":"33.00"}},{"$f":"SUMIFS(TroTra[Iznos],TroTra[Kategorija],SažetakTroškova[Troškovi])","v":{"v":45,"d":"45.00"}},{"$f":"SUMIFS(TroSvi[Iznos],TroSvi[Kategorija],SažetakTroškova[Troškovi])","v":{"v":375,"d":"375.00"}},{"$f":"SUMIFS(TroLip[Iznos],TroLip[Kategorija],SažetakTroškova[Troškovi])","v":{"v":201,"d":"201.00"}},{"$f":"SUMIFS(TroSrp[Iznos],TroSrp[Kategorija],SažetakTroškova[Troškovi])","v":{"v":0,"d":"0.00"}},{"$f":"SUMIFS(TroKol[Iznos],TroKol[Kategorija],SažetakTroškova[Troškovi])","v":{"v":0,"d":"0.00"}},{"$f":"SUMIFS(TroRuj[Iznos],TroRuj[Kategorija],SažetakTroškova[Troškovi])","v":{"v":0,"d":"0.00"}},{"$f":"SUMIFS(TroLis[Iznos],TroLis[Kategorija],SažetakTroškova[Troškovi])","v":{"v":0,"d":"0.00"}},{"$f":"SUMIFS(TroStu[Iznos],TroStu[Kategorija],SažetakTroškova[Troškovi])","v":{"v":0,"d":"0.00"}},{"$f":"SUMIFS(TroPro[Iznos],TroPro[Kategorija],SažetakTroškova[Troškovi])","v":{"v":201,"d":"201.00"}},{"$f":"SUM(SažetakTroškova[[#This Row],[Sij]:[Pro]])","v":{"v":1263,"d":"1,263.00"}}]
["Trošak 2",{"$f":"SUMIFS(TroSij[Iznos],TroSij[Kategorija],SažetakTroškova[Troškovi])","v":{"v":238,"d":"238.00"}},{"$f":"SUMIFS(TroVelj[Iznos],TroVelj[Kategorija],SažetakTroškova[Troškovi])","v":{"v":238,"d":"238.00"}},{"$f":"SUMIFS(TroOžu[Iznos],TroOžu[Kategorija],SažetakTroškova[Troškovi])","v":{"v":238,"d":"238.00"}},{"$f":"SUMIFS(TroTra[Iznos],TroTra[Kategorija],SažetakTroškova[Troškovi])","v":{"v":123,"d":"123.00"}},{"$f":"SUMIFS(TroSvi[Iznos],TroSvi[Kategorija],SažetakTroškova[Troškovi])","v":{"v":111,"d":"111.00"}},{"$f":"SUMIFS(TroLip[Iznos],TroLip[Kategorija],SažetakTroškova[Troškovi])","v":{"v":98,"d":"98.00"}},{"$f":"SUMIFS(TroSrp[Iznos],TroSrp[Kategorija],SažetakTroškova[Troškovi])","v":{"v":0,"d":"0.00"}},{"$f":"SUMIFS(TroKol[Iznos],TroKol[Kategorija],SažetakTroškova[Troškovi])","v":{"v":0,"d":"0.00"}},{"$f":"SUMIFS(TroRuj[Iznos],TroRuj[Kategorija],SažetakTroškova[Troškovi])","v":{"v":0,"d":"0.00"}},{"$f":"SUMIFS(TroLis[Iznos],TroLis[Kategorija],SažetakTroškova[Troškovi])","v":{"v":0,"d":"0.00"}},{"$f":"SUMIFS(TroStu[Iznos],TroStu[Kategorija],SažetakTroškova[Troškovi])","v":{"v":0,"d":"0.00"}},{"$f":"SUMIFS(TroPro[Iznos],TroPro[Kategorija],SažetakTroškova[Troškovi])","v":{"v":440,"d":"440.00"}},{"$f":"SUM(SažetakTroškova[[#This Row],[Sij]:[Pro]])","v":{"v":1486,"d":"1,486.00"}}]
["Trošak 3",{"$f":"SUMIFS(TroSij[Iznos],TroSij[Kategorija],SažetakTroškova[Troškovi])","v":{"v":110,"d":"110.00"}},{"$f":"SUMIFS(TroVelj[Iznos],TroVelj[Kategorija],SažetakTroškova[Troškovi])","v":{"v":110,"d":"110.00"}},{"$f":"SUMIFS(TroOžu[Iznos],TroOžu[Kategorija],SažetakTroškova[Troškovi])","v":{"v":110,"d":"110.00"}},{"$f":"SUMIFS(TroTra[Iznos],TroTra[Kategorija],SažetakTroškova[Troškovi])","v":{"v":125,"d":"125.00"}},{"$f":"SUMIFS(TroSvi[Iznos],TroSvi[Kategorija],SažetakTroškova[Troškovi])","v":{"v":333,"d":"333.00"}},{"$f":"SUMIFS(TroLip[Iznos],TroLip[Kategorija],SažetakTroškova[Troškovi])","v":{"v":122,"d":"122.00"}},{"$f":"SUMIFS(TroSrp[Iznos],TroSrp[Kategorija],SažetakTroškova[Troškovi])","v":{"v":0,"d":"0.00"}},{"$f":"SUMIFS(TroKol[Iznos],TroKol[Kategorija],SažetakTroškova[Troškovi])","v":{"v":0,"d":"0.00"}},{"$f":"SUMIFS(TroRuj[Iznos],TroRuj[Kategorija],SažetakTroškova[Troškovi])","v":{"v":0,"d":"0.00"}},{"$f":"SUMIFS(TroLis[Iznos],TroLis[Kategorija],SažetakTroškova[Troškovi])","v":{"v":0,"d":"0.00"}},{"$f":"SUMIFS(TroStu[Iznos],TroStu[Kategorija],SažetakTroškova[Troškovi])","v":{"v":0,"d":"0.00"}},{"$f":"SUMIFS(TroPro[Iznos],TroPro[Kategorija],SažetakTroškova[Troškovi])","v":{"v":122,"d":"122.00"}},{"$f":"SUM(SažetakTroškova[[#This Row],[Sij]:[Pro]])","v":{"v":1032,"d":"1,032.00"}}]
["Trošak 4",{"$f":"SUMIFS(TroSij[Iznos],TroSij[Kategorija],SažetakTroškova[Troškovi])","v":{"v":426,"d":"426.00"}},{"$f":"SUMIFS(TroVelj[Iznos],TroVelj[Kategorija],SažetakTroškova[Troškovi])","v":{"v":84,"d":"84.00"}},{"$f":"SUMIFS(TroOžu[Iznos],TroOžu[Kategorija],SažetakTroškova[Troškovi])","v":{"v":84,"d":"84.00"}},{"$f":"SUMIFS(TroTra[Iznos],TroTra[Kategorija],SažetakTroškova[Troškovi])","v":{"v":426,"d":"426.00"}},{"$f":"SUMIFS(TroSvi[Iznos],TroSvi[Kategorija],SažetakTroškova[Troškovi])","v":{"v":125,"d":"125.00"}},{"$f":"SUMIFS(TroLip[Iznos],TroLip[Kategorija],SažetakTroškova[Troškovi])","v":{"v":187,"d":"187.00"}},{"$f":"SUMIFS(TroSrp[Iznos],TroSrp[Kategorija],SažetakTroškova[Troškovi])","v":{"v":0,"d":"0.00"}},{"$f":"SUMIFS(TroKol[Iznos],TroKol[Kategorija],SažetakTroškova[Troškovi])","v":{"v":0,"d":"0.00"}},{"$f":"SUMIFS(TroRuj[Iznos],TroRuj[Kategorija],SažetakTroškova[Troškovi])","v":{"v":0,"d":"0.00"}},{"$f":"SUMIFS(TroLis[Iznos],TroLis[Kategorija],SažetakTroškova[Troškovi])","v":{"v":0,"d":"0.00"}},{"$f":"SUMIFS(TroStu[Iznos],TroStu[Kategorija],SažetakTroškova[Troškovi])","v":{"v":0,"d":"0.00"}},{"$f":"SUMIFS(TroPro[Iznos],TroPro[Kategorija],SažetakTroškova[Troškovi])","v":{"v":187,"d":"187.00"}},{"$f":"SUM(SažetakTroškova[[#This Row],[Sij]:[Pro]])","v":{"v":1519,"d":"1,519.00"}}]
["Trošak 5",{"$f":"SUMIFS(TroSij[Iznos],TroSij[Kategorija],SažetakTroškova[Troškovi])","v":{"v":54,"d":"54.00"}},{"$f":"SUMIFS(TroVelj[Iznos],TroVelj[Kategorija],SažetakTroškova[Troškovi])","v":{"v":54,"d":"54.00"}},{"$f":"SUMIFS(TroOžu[Iznos],TroOžu[Kategorija],SažetakTroškova[Troškovi])","v":{"v":109,"d":"109.00"}},{"$f":"SUMIFS(TroTra[Iznos],TroTra[Kategorija],SažetakTroškova[Troškovi])","v":{"v":98,"d":"98.00"}},{"$f":"SUMIFS(TroSvi[Iznos],TroSvi[Kategorija],SažetakTroškova[Troškovi])","v":{"v":33,"d":"33.00"}},{"$f":"SUMIFS(TroLip[Iznos],TroLip[Kategorija],SažetakTroškova[Troškovi])","v":{"v":441,"d":"441.00"}},{"$f":"SUMIFS(TroSrp[Iznos],TroSrp[Kategorija],SažetakTroškova[Troškovi])","v":{"v":0,"d":"0.00"}},{"$f":"SUMIFS(TroKol[Iznos],TroKol[Kategorija],SažetakTroškova[Troškovi])","v":{"v":0,"d":"0.00"}},{"$f":"SUMIFS(TroRuj[Iznos],TroRuj[Kategorija],SažetakTroškova[Troškovi])","v":{"v":0,"d":"0.00"}},{"$f":"SUMIFS(TroLis[Iznos],TroLis[Kategorija],SažetakTroškova[Troškovi])","v":{"v":0,"d":"0.00"}},{"$f":"SUMIFS(TroStu[Iznos],TroStu[Kategorija],SažetakTroškova[Troškovi])","v":{"v":0,"d":"0.00"}},{"$f":"SUMIFS(TroPro[Iznos],TroPro[Kategorija],SažetakTroškova[Troškovi])","v":{"v":99,"d":"99.00"}},{"$f":"SUM(SažetakTroškova[[#This Row],[Sij]:[Pro]])","v":{"v":888,"d":"888.00"}}]
["Zbroj",{"$f":"SUBTOTAL(109,SažetakTroškova[Sij])","v":{"v":861,"d":"861.00"}},{"$f":"SUBTOTAL(109,SažetakTroškova[Velj])","v":{"v":861,"d":"861.00"}},{"$f":"SUBTOTAL(109,SažetakTroškova[Ožu])","v":{"v":574,"d":"574.00"}},{"$f":"SUBTOTAL(109,SažetakTroškova[Tra])","v":{"v":817,"d":"817.00"}},{"$f":"SUBTOTAL(109,SažetakTroškova[Svi])","v":{"v":977,"d":"977.00"}},{"$f":"SUBTOTAL(109,SažetakTroškova[Lip])","v":{"v":1049,"d":"1,049.00"}},{"$f":"SUBTOTAL(109,SažetakTroškova[Srp])","v":{"v":0,"d":"0.00"}},{"$f":"SUBTOTAL(109,SažetakTroškova[Kol])","v":{"v":0,"d":"0.00"}},{"$f":"SUBTOTAL(109,SažetakTroškova[Ruj])","v":{"v":0,"d":"0.00"}},{"$f":"SUBTOTAL(109,SažetakTroškova[Lis])","v":{"v":0,"d":"0.00"}},{"$f":"SUBTOTAL(109,SažetakTroškova[Stu])","v":{"v":0,"d":"0.00"}},{"$f":"SUBTOTAL(109,SažetakTroškova[Pro])","v":{"v":1049,"d":"1,049.00"}},{"$f":"SUBTOTAL(109,SažetakTroškova[Zbroj])","v":{"v":6188,"d":"6,188.00"}}]

{"sheet":"sij","index":2,"n_rows":9,"n_cols":5,"rows_kept":9,"merged":[[0,0,0,2]]}
["TROŠKOVI U SIJEČNJU",null,null,"Sažetak","Savjeti"]
["Datum","Broj narudžbenice","Iznos","Kategorija","Opis"]
[{"$f":"DATE(YEAR(TODAY()),1,4)","v":"2016-01-04"},"A-12345",{"v":33,"d":"33.00"},"Trošak 1","Zalihe"]
[{"$f":"DATE(YEAR(TODAY()),1,5)","v":"2016-01-05"},"A-12346",{"v":238,"d":"238.00"},"Trošak 2"]
[null,null,{"v":342,"d":"342.00"},"Trošak 4"]
[null,null,{"v":110,"d":"110.00"},"Trošak 3"]
[null,null,{"v":84,"d":"84.00"},"Trošak 4"]
[null,null,{"v":54,"d":"54.00"},"Trošak 5"]
["Zbroj",null,{"$f":"SUBTOTAL(109,TroSij[Iznos])","v":{"v":861,"d":"861.00"}}]

{"sheet":"velj","index":3,"n_rows":9,"n_cols":5,"rows_kept":9,"merged":[[0,0,0,2]]}
["TROŠKOVI U VELJAČI",null,null,"Sažetak","Savjeti"]
["Datum","Broj narudžbenice","Iznos","Kategorija","Opis"]
[{"$f":"DATE(YEAR(TODAY()),2,3)","v":"2016-02-03"},"A-12345",{"v":33,"d":"33.00"},"Trošak 1","Zalihe"]
[{"$f":"DATE(YEAR(TODAY()),2,4)","v":"2016-02-04"},"A-12346",{"v":238,"d":"238.00"},"Trošak 2"]
[null,null,{"v":342,"d":"342.00"},"Trošak 1"]
[null,null,{"v":110,"d":"110.00"},"Trošak 3"]
[null,null,{"v":84,"d":"84.00"},"Trošak 4"]
[null,null,{"v":54,"d":"54.00"},"Trošak 5"]
["Zbroj",null,{"$f":"SUBTOTAL(109,TroVelj[Iznos])","v":{"v":861,"d":"861.00"}}]

{"sheet":"ožu","index":4,"n_rows":9,"n_cols":5,"rows_kept":9,"merged":[[0,0,0,2]]}
["TROŠKOVI U OŽUJKU",null,null,"Sažetak","Savjeti"]
["Datum","Broj narudžbenice","Iznos","Kategorija","Opis"]
[{"$f":"DATE(YEAR(TODAY()),3,5)","v":"2016-03-05"},"A-12345",{"v":33,"d":"33.00"},"Trošak 1","Zalihe"]
[{"$f":"DATE(YEAR(TODAY()),3,6)","v":"2016-03-06"},"A-12346",{"v":238,"d":"238.00"},"Trošak 2"]
[null,null,{"v":55,"d":"55.00"},"Trošak 5"]
[null,null,{"v":110,"d":"110.00"},"Trošak 3"]
[null,null,{"v":84,"d":"84.00"},"Trošak 4"]
[null,null,{"v":54,"d":"54.00"},"Trošak 5"]
["Zbroj",null,{"$f":"SUBTOTAL(109,TroOžu[Iznos])","v":{"v":574,"d":"574.00"}}]

{"sheet":"tra","index":5,"n_rows":9,"n_cols":5,"rows_kept":9,"merged":[[0,0,0,2]]}
["TROŠKOVI U TRAVNJU",null,null,"Sažetak","Savjeti"]
["Datum","Broj narudžbenice","Iznos","Kategorija","Opis"]
[{"$f":"DATE(YEAR(TODAY()),4,4)","v":"2016-04-04"},"A-12345",{"v":45,"d":"45.00"},"Trošak 1","Zalihe"]
[{"$f":"DATE(YEAR(TODAY()),4,8)","v":"2016-04-08"},"A-12346",{"v":123,"d":"123.00"},"Trošak 2"]
[null,null,{"v":342,"d":"342.00"},"Trošak 4"]
[null,null,{"v":125,"d":"125.00"},"Trošak 3"]
[null,null,{"v":84,"d":"84.00"},"Trošak 4"]
[null,null,{"v":98,"d":"98.00"},"Trošak 5"]
["Zbroj",null,{"$f":"SUBTOTAL(109,TroTra[Iznos])","v":{"v":817,"d":"817.00"}}]

{"sheet":"svi","index":6,"n_rows":9,"n_cols":5,"rows_kept":9,"merged":[[0,0,0,2]]}
["TROŠKOVI U SVIBNJU",null,null,"Sažetak","Savjeti"]
["Datum","Broj narudžbenice","Iznos","Kategorija","Opis"]
[{"$f":"DATE(YEAR(TODAY()),5,3)","v":"2016-05-03"},"A-12345",{"v":33,"d":"33.00"},"Trošak 1","Zalihe"]
[{"$f":"DATE(YEAR(TODAY()),5,8)","v":"2016-05-08"},"A-12346",{"v":111,"d":"111.00"},"Trošak 2"]
[null,null,{"v":342,"d":"342.00"},"Trošak 1"]
[null,null,{"v":333,"d":"333.00"},"Trošak 3"]
[null,null,{"v":125,"d":"125.00"},"Trošak 4"]
[null,null,{"v":33,"d":"33.00"},"Trošak 5"]
["Zbroj",null,{"$f":"SUBTOTAL(109,TroSvi[Iznos])","v":{"v":977,"d":"977.00"}}]

{"sheet":"lip","index":7,"n_rows":9,"n_cols":5,"rows_kept":9,"merged":[[0,0,0,2]]}
["TROŠKOVI U LIPNJU",null,null,"Sažetak","Savjeti"]
["Datum","Broj narudžbenice","Iznos","Kategorija","Opis"]
[{"$f":"DATE(YEAR(TODAY()),6,7)","v":"2016-06-07"},"A-12345",{"v":201,"d":"201.00"},"Trošak 1","Zalihe"]
[{"$f":"DATE(YEAR(TODAY()),6,8)","v":"2016-06-08"},"A-12346",{"v":98,"d":"98.00"},"Trošak 2"]
[null,null,{"v":342,"d":"342.00"},"Trošak 5"]
[null,null,{"v":122,"d":"122.00"},"Trošak 3"]
[null,null,{"v":187,"d":"187.00"},"Trošak 4"]
[null,null,{"v":99,"d":"99.00"},"Trošak 5"]
["Zbroj",null,{"$f":"SUBTOTAL(109,TroLip[Iznos])","v":{"v":1049,"d":"1,049.00"}}]

{"sheet":"srp","index":8,"n_rows":9,"n_cols":5,"rows_kept":9,"merged":[[0,0,0,2]]}
["TROŠKOVI U SRPNJU",null,null,"Sažetak","Savjeti"]
["Datum","Broj narudžbenice","Iznos","Kategorija","Opis"]
[{"$f":"DATE(YEAR(TODAY()),7,9)","v":"2016-07-09"},"A-12345",null,"Trošak 1","Zalihe"]
[{"$f":"DATE(YEAR(TODAY()),7,14)","v":"2016-07-14"},"A-12346",null,"Trošak 2"]
[{"$nulls":3},"Trošak 2"]
[{"$nulls":3},"Trošak 3"]
[{"$nulls":3},"Trošak 4"]
[{"$nulls":3},"Trošak 5"]
["Zbroj",null,{"$f":"SUBTOTAL(109,TroSrp[Iznos])","v":{"v":0,"d":"0.00"}}]

{"sheet":"kol","index":9,"n_rows":9,"n_cols":5,"rows_kept":9,"merged":[[0,0,0,2]]}
["TROŠKOVI U KOLOVOZU",null,null,"Sažetak","Savjeti"]
["Datum","Broj narudžbenice","Iznos","Kategorija","Opis"]
[{"$f":"DATE(YEAR(TODAY()),8,8)","v":"2016-08-08"},"A-12345",null,"Trošak 1","Zalihe"]
[{"$f":"DATE(YEAR(TODAY()),8,9)","v":"2016-08-09"},"A-12346",null,"Trošak 2"]
[{"$nulls":3},"Trošak 2"]
[{"$nulls":3},"Trošak 3"]
[{"$nulls":3},"Trošak 4"]
[{"$nulls":3},"Trošak 5"]
["Zbroj",null,{"$f":"SUBTOTAL(109,TroKol[Iznos])","v":{"v":0,"d":"0.00"}}]

{"sheet":"ruj","index":10,"n_rows":9,"n_cols":5,"rows_kept":9,"merged":[[0,0,0,2]]}
["TROŠKOVI U RUJNU",null,null,"Sažetak","Savjeti"]
["Datum","Broj narudžbenice","Iznos","Kategorija","Opis"]
[{"$f":"DATE(YEAR(TODAY()),9,9)","v":"2016-09-09"},"A-12345",null,"Trošak 1","Zalihe"]
[{"$f":"DATE(YEAR(TODAY()),9,15)","v":"2016-09-15"},"A-12346",null,"Trošak 2"]
[{"$nulls":3},"Trošak 2"]
[{"$nulls":3},"Trošak 3"]
[{"$nulls":3},"Trošak 4"]
[{"$nulls":3},"Trošak 5"]
["Zbroj",null,{"$f":"SUBTOTAL(109,TroRuj[Iznos])","v":{"v":0,"d":"0.00"}}]

{"sheet":"lis","index":11,"n_rows":9,"n_cols":5,"rows_kept":9,"merged":[[0,0,0,2]]}
["TROŠKOVI U LISTOPADU",null,null,"Sažetak","Savjeti"]
["Datum","Broj narudžbenice","Iznos","Kategorija","Opis"]
[{"$f":"DATE(YEAR(TODAY()),10,10)","v":"2016-10-10"},"A-12345",null,"Trošak 1","Zalihe"]
[{"$f":"DATE(YEAR(TODAY()),10,21)","v":"2016-10-21"},"A-12346",null,"Trošak 2"]
[{"$nulls":3},"Trošak 2"]
[{"$nulls":3},"Trošak 3"]
[{"$nulls":3},"Trošak 4"]
[{"$nulls":3},"Trošak 5"]
["Zbroj",null,{"$f":"SUBTOTAL(109,TroLis[Iznos])","v":{"v":0,"d":"0.00"}}]

{"sheet":"stu","index":12,"n_rows":9,"n_cols":5,"rows_kept":9,"merged":[[0,0,0,2]]}
["TROŠKOVI U STUDENOM",null,null,"Sažetak","Savjeti"]
["Datum","Broj narudžbenice","Iznos","Kategorija","Opis"]
[{"$f":"DATE(YEAR(TODAY()),11,14)","v":"2016-11-14"},"A-12345",null,"Trošak 1","Zalihe"]
[{"$f":"DATE(YEAR(TODAY()),11,21)","v":"2016-11-21"},"A-12346",null,"Trošak 2"]
[{"$nulls":3},"Trošak 2"]
[{"$nulls":3},"Trošak 3"]
[{"$nulls":3},"Trošak 4"]
[{"$nulls":3},"Trošak 5"]
["Zbroj",null,{"$f":"SUBTOTAL(109,TroStu[Iznos])","v":{"v":0,"d":"0.00"}}]

{"sheet":"pro","index":13,"n_rows":9,"n_cols":5,"rows_kept":9,"merged":[[0,0,0,2]]}
["TROŠKOVI U PROSINCU",null,null,"Sažetak","Savjeti"]
["Datum","Broj narudžbenice","Iznos","Kategorija","Opis"]
[{"$f":"DATE(YEAR(TODAY()),12,2)","v":"2016-12-02"},"A-12345",{"v":201,"d":"201.00"},"Trošak 1","Zalihe"]
[{"$f":"DATE(YEAR(TODAY()),12,24)","v":"2016-12-24"},"A-12346",{"v":98,"d":"98.00"},"Trošak 2"]
[null,null,{"v":342,"d":"342.00"},"Trošak 2"]
[null,null,{"v":122,"d":"122.00"},"Trošak 3"]
[null,null,{"v":187,"d":"187.00"},"Trošak 4"]
[null,null,{"v":99,"d":"99.00"},"Trošak 5"]
["Zbroj",null,{"$f":"SUBTOTAL(109,TroPro[Iznos])","v":{"v":1049,"d":"1,049.00"}}]